bitfinex-derivatives/quotes_ETHF0:USTF0_20250326
["timestamp","ask_amount","ask_price","bid_price","bid_amount"]
[1742975039128,3.145,2069.8,2069.6,2.33454]
[1742975039324,4.551,2069.8,2069.7,1.3135]
[1742975039530,4.1112,2069.8,2069.7,1.3135]
[1742975041735,4.1112,2069.8,2069.7,2.2797]
[1742975042441,3.145,2069.8,2069.7,2.2797]
[1742975042739,4.11116,2069.8,2069.7,2.2797]
[1742975042944,9.87,2069.9,2069.8,0.96616]
[1742975043137,0.96605,2070.1,2070.0,0.96606]
[1742975043739,0.96605,2070.1,2070.0,2.26036]
[1742975043937,0.96599,2070.2,2070.1,0.96602]
[1742975044140,4.11095,2070.3,2070.2,0.96596]
[1742975044338,0.96597,2070.2,2070.1,2.26029]
[1742975044540,3.145,2070.3,2070.2,0.96597]
[1742975044541,4.11096,2070.3,2070.2,0.96597]
[1742975044848,4.11096,2070.3,2070.2,2.26027]
[1742975045240,4.11096,2070.3,2070.2,1.2943]
[1742975047248,0.96606,2070.0,2069.9,1.61839]
[1742975047548,4.11106,2070.0,2069.9,1.9975]
[1742975047845,4.11106,2070.0,2069.7,0.96619]
[1742975047846,0.96617,2069.8,2069.7,0.96619]
[1742975049247,0.96617,2069.8,2069.7,2.31139]
[1742975049439,0.96617,2069.8,2069.7,1.3452]
[1742975051254,0.7082,2069.9,2069.6,1.66663]
[1742975051545,0.9662,2069.8,2069.7,1.3725]
[1742975051948,0.9662,2069.8,2069.7,2.3387]
[1742975052354,0.9662,2069.8,2069.7,1.3725]
[1742975052946,2.35,2069.8,2069.7,1.3725]
[1742975053340,1.3838,2069.8,2069.7,2.3387]
[1742975053745,2.34996,2069.8,2069.7,1.3725]
[1742975053946,2.34996,2069.8,2069.7,2.3387]
[1742975054149,2.34996,2069.8,2069.7,1.3725]
[1742975054743,0.9662,2069.7,2069.6,0.7004]
[1742975055048,5.494,2069.7,2069.6,2.0462]
[1742975055245,5.494,2069.7,2069.6,1.3458]
[1742975062455,0.96625,2069.6,2069.5,0.64814078]
[1742975062655,2.92155,2069.6,2069.5,2.05074078]
[1742975065261,2.92155,2069.6,2069.5,3.01704078]
[1742975065557,1.3112,2069.6,2069.5,3.01704078]
[1742975065756,3.144,2069.7,2069.6,0.96625]
[1742975065958,5.3906,2069.7,2069.6,1.4156]
[1742975066559,5.3906,2069.7,2069.6,2.38185]
[1742975067765,5.3906,2069.7,2069.6,1.4156]
[1742975069569,6.035,2069.7,2069.6,1.4156]
[1742975069769,6.035,2069.7,2069.6,2.38185]
[1742975070669,5.3906,2069.7,2069.6,2.38185]
[1742975073561,4.4244,2069.7,2069.6,2.38185]
[1742975074158,5.3906,2069.7,2069.6,2.38185]
[1742975074561,4.4244,2069.7,2069.6,2.38185]
[1742975075272,1.2804,2069.7,2069.6,2.38185]
[1742975077866,2.2466,2069.7,2069.6,2.38185]
[1742975078068,1.2804,2069.7,2069.6,2.38185]
[1742975079060,2.2466,2069.7,2069.6,2.38185]
[1742975079261,1.2804,2069.7,2069.6,2.38185]
[1742975080364,0.9661,2070.0,2069.6,1.4156]
[1742975080573,4.4939,2069.9,2069.8,0.96616]
[1742975080872,4.4939,2069.9,2069.8,2.34066]
[1742975081575,5.46001,2069.9,2069.8,2.34066]
[1742975081972,5.46001,2069.9,2069.8,1.3745]
[1742975082565,4.4939,2069.9,2069.8,2.34066]
[1742975091168,4.17384,2070.1,2069.9,0.96606]
[1742975091364,1.2893,2070.0,2069.9,0.96606]
[1742975091566,4.4333,2070.0,2069.9,0.96606]
[1742975092075,5.39936,2070.0,2069.8,4.17392]
[1742975092277,1.3687,2069.9,2069.8,4.17392]
[1742975092477,1.3687,2069.9,2069.8,4.82822]
[1742975093173,1.3687,2069.9,2069.8,1.62042]
[1742975094178,3.144,2070.0,2069.9,0.96611]
[1742975094580,4.11006,2070.0,2069.9,0.96611]
[1742975094773,5.47876,2070.0,2069.9,0.96611]
[1742975095075,4.5127,2070.0,2069.9,0.96611]
[1742975095572,5.47876,2070.0,2069.9,0.96611]
[1742975095877,4.5127,2070.0,2069.9,0.96611]
[1742975101780,1.3687,2070.0,2069.9,0.96611]
[1742975103182,1.3687,2070.0,2069.9,2.36371]
[1742975103682,3.21504078,2070.4,2070.3,0.96592]
[1742975103885,0.00724078,2070.4,2070.3,0.96592]
[1742975104985,1.41034078,2070.4,2070.3,0.96592]
[1742975105181,2.37622078,2070.4,2070.3,2.27442]
[1742975105382,1.41034078,2070.4,2070.3,2.27442]
[1742975108392,2.37622078,2070.4,2070.3,2.27442]
[1742975108791,1.41034078,2070.4,2070.3,2.27442]
[1742975108998,2.37622078,2070.4,2070.3,2.27442]
[1742975109199,1.41034078,2070.4,2070.3,2.27442]
[1742975112303,2.37622078,2070.4,2070.3,2.27442]
[1742975112498,2.07454078,2070.4,2070.3,2.27442]
[1742975115202,1.41034078,2070.4,2070.3,2.27442]
[1742975121412,0.00724078,2070.4,2070.3,2.27442]
[1742975121798,14.04341,2071.0,2070.9,0.96564]
[1742975122109,3.142,2071.0,2070.9,4.17344]
[1742975122411,3.142,2071.0,2070.9,44.97344]
[1742975122605,3.142,2071.0,2070.9,47.60384]
[1742975122912,1.3779,2071.1,2071.0,0.9656]
[1742975123112,1.3779,2071.1,2071.0,2.2884]
[1742975125309,1.3779,2071.1,2070.9,45.3575]
[1742975125310,0.9656,2071.0,2070.9,3.2078]
[1742975125511,0.9656,2071.0,2070.9,4.17344]
[1742975125512,1.651,2071.0,2070.9,4.17344]
[1742975125704,0.6854,2071.0,2070.9,4.17344]
[1742975126100,4.792,2071.0,2070.9,3.2078]
[1742975126307,0.96569,2070.8,2070.3,3.2078]
[1742975126508,0.96588,2070.4,2070.3,5.5047]
[1742975126806,0.96588,2070.4,2070.0,3.77158]
[1742975126807,8.76329,2070.6,2070.2,0.96595]
[1742975127009,0.96597,2070.2,2070.0,4.5643]
[1742975127213,1.3758,2070.1,2070.0,3.2078]
[1742975127410,0.96608,2070.0,2069.9,0.96608]
[1742975127711,0.6699,2070.0,2069.9,0.96608]
[1742975128418,2.0457,2070.0,2069.9,0.96608]
[1742975128913,5.1867,2070.0,2069.8,0.00724078]
[1742975129112,0.96611,2069.9,2069.8,0.00724078]
[1742975129310,2.34781,2069.9,2069.8,0.00724078]
[1742975129515,1.3817,2069.9,2069.8,0.97340078]
[1742975130313,2.34781,2069.9,2069.8,0.00724078]
[1742975130915,2.34781,2069.9,2069.3,3.2078]
[1742975130916,0.96644,2069.2,2069.1,3.2078]
[1742975131117,4.10744,2069.2,2069.1,3.2078]
[1742975134018,4.10744,2069.2,2069.1,4.17426]
[1742975134019,3.141,2069.2,2069.1,4.17426]
[1742975134325,4.10744,2069.2,2069.1,3.2078]
[1742975134526,5.50714,2069.2,2069.1,3.2078]
[1742975134722,5.50714,2069.2,2069.1,5.54928]
[1742975134921,4.5407,2069.2,2069.1,46.34928]
[1742975135525,3.141,2069.2,2069.1,46.34928]
[1742975136032,3.142,2069.3,2069.2,0.9664]
[1742975136524,3.142,2069.3,2069.2,0.96644]
[1742975136728,4.10839,2069.3,2069.2,0.96644]
[1742975136926,5.41049,2069.3,2069.2,0.96644]
[1742975137129,3.142,2069.3,2069.2,0.96644]
[1742975137329,0.96634,2069.4,2069.3,0.96637]
[1742975137527,3.142,2069.5,2069.4,0.96634]
[1742975137722,3.142,2069.5,2069.3,2.24656]
[1742975137922,2.34643,2069.5,2069.3,2.24656]
[1742975138123,0.96634,2069.4,2069.3,2.24656]
[1742975138323,0.96634,2069.4,2069.3,1.2802]
[1742975138528,2.34644,2069.4,2069.3,1.2802]
[1742975139227,0.96644,2069.2,2069.1,44.0078]
[1742975139530,0.96644,2069.2,2069.1,3.2078]
[1742975139727,0.96644,2069.2,2069.1,4.17428]
[1742975139922,0.96644,2069.2,2069.1,4.5437]
[1742975140535,0.96644,2069.2,2069.1,5.51018]
[1742975141033,0.96644,2069.2,2069.1,4.5437]
[1742975142119,4.10844,2069.2,2069.1,4.5437]
[1742975142319,8.61774,2069.2,2069.1,1.3359]
[1742975142529,0.96648,2069.1,2069.0,40.8]
[1742975142722,1.3015,2069.1,2069.0,41.76653]
[1742975142921,2.26798,2069.1,2069.0,41.76653]
[1742975143126,2.26798,2069.1,2069.0,42.129]
[1742975143325,2.26798,2069.1,2069.0,1.329]
[1742975145428,0.96653,2069.0,2068.9,40.80482718]
[1742975145633,2.34753,2069.0,2068.9,42.12862718]
[1742975149532,0.96648,2069.1,2069.0,0.9665]
[1742975149833,0.96648,2069.1,2069.0,1.962]
[1742975150036,0.96653,2069.0,2068.9,40.80482718]
[1742975150238,0.96653,2069.0,2068.9,43.18940718]
[1742975150533,0.96653,2069.0,2068.9,42.22282718]
[1742975151039,0.96653,2069.0,2068.9,43.18940718]
[1742975151239,1.3439,2069.1,2068.9,42.22282718]
[1742975151240,2.31042,2069.1,2068.9,42.22282718]
[1742975151440,2.31042,2069.1,2069.0,0.96653]
[1742975151639,2.31042,2069.1,2069.0,2.38453]
[1742975151838,2.31042,2069.1,2069.0,1.418]
[1742975152537,2.31042,2069.1,2069.0,2.38453]
[1742975153041,2.31042,2069.1,2069.0,1.418]
[1742975153240,2.31042,2069.1,2069.0,2.38453]
[1742975153744,1.3439,2069.1,2069.0,1.418]
[1742975154040,2.31038,2069.1,2069.0,2.38453]
[1742975154234,1.3439,2069.1,2069.0,2.38453]
[1742975154434,4.11569078,2069.2,2069.1,0.96648]
[1742975154634,5.44629078,2069.2,2069.1,1.3068]
[1742975154834,5.44729078,2069.2,2069.1,1.3068]
[1742975155035,2.30429078,2069.2,2069.1,2.27328]
[1742975155239,4.48084078,2069.2,2069.1,2.27328]
[1742975155745,3.15024078,2069.2,2069.1,2.27328]
[1742975156345,0.00724078,2069.2,2069.1,2.27328]
[1742975156735,0.00724078,2069.2,2069.1,5.48108]
[1742975158938,1.40114078,2069.2,2069.1,5.48108]
[1742975159147,0.00724078,2069.2,2069.1,5.48108]
[1742975160752,0.00724078,2069.2,2069.1,6.14811552]
[1742975163750,0.00724078,2069.2,2069.1,6.14770991]
[1742975164451,0.00724078,2069.2,2069.1,5.48108]
[1742975165556,0.97368078,2069.2,2069.1,5.48108]
[1742975165947,0.00724078,2069.2,2069.1,5.48108]
[1742975166252,1.35634078,2069.2,2069.1,5.48108]
[1742975166557,4.49934078,2069.2,2068.9,41.77138718]
[1742975166745,0.96653,2069.0,2068.9,43.10498718]
[1742975167051,2.31563,2069.1,2069.0,0.96653]
[1742975168853,1.3491,2069.1,2069.0,0.96653]
[1742975169045,4.11671078,2069.2,2069.1,0.96648]
[1742975169244,4.53304078,2069.2,2069.1,0.96648]
[1742975169440,5.49948078,2069.2,2069.1,0.96648]
[1742975169951,4.53304078,2069.2,2069.1,0.96648]
[1742975170347,3.15024078,2069.2,2069.1,0.96648]
[1742975170646,0.00724078,2069.2,2069.1,4.17428]
[1742975171956,0.00724078,2069.2,2069.1,4.84084038]
[1742975172456,0.00724078,2069.2,2069.1,4.17428]
[1742975172749,1.3654,2069.5,2069.4,0.96634]
[1742975172955,1.3654,2069.5,2069.4,4.17414]
[1742975173446,0.96621,2069.7,2069.6,0.96625]
[1742975173655,1.3654,2069.7,2069.6,0.96625]
[1742975176951,0.00724078,2069.9,2069.8,0.96616]
[1742975177253,0.00724078,2069.9,2069.7,4.5079]
[1742975177956,0.00724078,2069.9,2069.8,40.8]
[1742975179158,0.00724078,2069.9,2069.8,43.3]
[1742975180259,0.00724078,2069.9,2069.8,46.442]
[1742975180559,0.00724078,2069.9,2069.8,43.942]
[1742975182859,0.00724078,2069.9,2069.8,45.3278]
[1742975184162,0.00724078,2069.9,2069.8,42.1858]
[1742975184554,0.67754078,2069.9,2069.8,42.1858]
[1742975185364,1.98324078,2069.9,2069.8,42.1858]
[1742975185669,1.31294078,2069.9,2069.8,42.1858]
[1742975185870,0.00724078,2069.9,2069.8,42.1858]
[1742975188265,0.00724078,2069.9,2069.8,43.15196]
[1742975189166,0.00724078,2069.9,2069.8,42.1858]
[1742975190167,0.00724078,2069.9,2069.8,43.15196]
[1742975192262,0.00724078,2069.9,2069.8,42.1858]
[1742975193164,0.00724078,2069.9,2069.8,43.15196]
[1742975194770,1.3273,2070.3,2070.0,0.96606]
[1742975194972,1.3273,2070.3,2070.2,4.17377]
[1742975195461,1.3273,2070.3,2070.2,46.30107]
[1742975196074,0.00724078,2070.5,2070.4,0.96588]
[1742975196269,1.40664078,2070.5,2070.4,0.96588]
[1742975196570,0.00724078,2070.5,2070.4,0.96588]
[1742975197571,0.00724078,2070.5,2070.4,41.76588]
[1742975197866,1.3994,2070.7,2070.6,0.96578]
[1742975198072,0.6837,2071.0,2070.9,0.96564]
[1742975198364,2.0831,2071.0,2070.9,0.96564]
[1742975198570,2.0831,2071.0,2070.9,41.76564]
[1742975198769,1.3994,2071.0,2070.9,41.76564]
[1742975198971,0.6607,2071.4,2071.3,0.96546]
[1742975199371,2.0694,2071.4,2071.3,0.96546]
[1742975202673,3.03481,2071.4,2071.3,0.96546]
[1742975202880,2.0694,2071.4,2071.3,0.96546]
[1742975203077,3.03481,2071.4,2071.3,0.96546]
[1742975203270,2.0694,2071.4,2071.3,0.96546]
[1742975204578,3.03481,2071.4,2071.3,0.96546]
[1742975204878,2.0694,2071.4,2071.3,0.96546]
[1742975206178,1.4087,2071.4,2071.3,0.96546]
[1742975207174,0.00724078,2071.6,2071.5,0.96536]
[1742975207576,2.10904078,2071.6,2071.5,0.96536]
[1742975209172,3.07436078,2071.6,2071.5,0.96536]
[1742975209670,2.10904078,2071.6,2071.5,0.96536]
[1742975210383,3.07436078,2071.6,2071.5,0.96536]
[1742975211678,2.10904078,2071.6,2071.5,0.96536]
[1742975212274,2.77124078,2071.6,2071.5,0.96536]
[1742975213369,1.41494078,2071.6,2071.5,0.96536]
[1742975213680,1.41494078,2071.6,2071.5,2.26146]
[1742975214381,1.41494078,2071.6,2071.5,0.96536]
[1742975214885,2.38026078,2071.6,2071.5,0.96536]
[1742975215083,3.08216078,2071.6,2071.5,0.96536]
[1742975215387,2.11684078,2071.6,2071.5,0.96536]
[1742975215878,1.41494078,2071.6,2071.5,0.96536]
[1742975216679,1.41494078,2071.6,2071.5,2.28206]
[1742975216981,1.41494078,2071.6,2071.2,9.43091]
[1742975217283,2.38028078,2071.6,2071.5,0.96536]
[1742975217486,0.9654,2071.5,2071.3,1.2868]
[1742975217681,0.96541,2071.4,2071.3,1.2868]
[1742975217880,1.66171,2071.4,2071.2,3.9013]
[1742975218078,1.66171,2071.4,2071.3,0.96546]
[1742975218379,0.6963,2071.4,2071.3,0.96546]
[1742975219081,0.6963,2071.4,2071.3,2.25226]
[1742975220685,1.66171,2071.4,2071.3,2.25226]
[1742975221681,0.6963,2071.4,2071.3,2.25226]
[1742975222681,4.11158078,2071.6,2071.5,0.96536]
[1742975223889,3.14624078,2071.6,2071.5,0.96536]
[1742975224193,4.11156078,2071.6,2071.5,0.96536]
[1742975224985,3.14624078,2071.6,2071.5,0.96536]
[1742975225884,0.00724078,2071.6,2071.5,0.96536]
[1742975226192,0.00724078,2071.6,2071.5,4.17316]
[1742975228889,13.0778,2072.5,2071.7,2.41313]
[1742975229091,0.63381576,2072.3,2072.2,0.96504]
[1742975229293,1.59881576,2072.3,2072.2,0.96504]
[1742975229490,1.59881576,2072.3,2072.2,41.76504]
[1742975229796,1.59881576,2072.3,2071.9,0.6908]
[1742975229996,1.59881576,2072.3,2072.1,0.96506]
[1742975230191,0.64105654,2072.3,2072.2,41.76504]
[1742975230493,0.64105654,2072.3,2072.2,40.8]
[1742975230687,4.74504654,2072.3,2072.2,40.8]
[1742975231089,3.78005654,2072.3,2072.0,0.96511]
[1742975231295,0.96508,2072.1,2072.0,0.96511]
[1742975231496,0.96508,2072.1,2072.0,40.8]
[1742975231999,0.96508,2072.1,2072.0,41.76513]
[1742975232392,0.96508,2072.1,2072.0,40.8]
[1742975232997,2.28478,2072.1,2072.0,40.8]
[1742975233201,2.28478,2072.1,2071.9,0.97240078]
[1742975233499,1.3197,2072.0,2071.9,0.97240078]
[1742975233701,1.3197,2072.0,2071.9,41.77240078]
[1742975233900,1.61586,2072.2,2071.9,40.80724078]
[1742975234202,1.3197,2072.1,2072.0,0.96513]
[1742975234392,1.3197,2072.1,2072.0,1.63383]
[1742975234897,3.14524078,2072.3,2072.2,0.96504]
[1742975236100,4.50894078,2072.3,2072.2,0.96504]
[1742975236895,4.50894078,2072.3,2072.2,1.65334]
[1742975237193,1.37094078,2072.3,2072.2,1.65334]
[1742975237800,1.37094078,2072.3,2072.2,0.6883]
[1742975237999,2.33593078,2072.3,2072.2,0.6883]
[1742975238502,0.96513,2072.0,2071.9,0.00724078]
[1742975238994,2.5,2072.0,2070.9,3.60176272]
[1742975239189,0.9656,2071.0,2070.9,3.18941576]
[1742975239393,0.96564,2070.9,2070.8,0.6692]
[1742975239603,2.24574,2070.9,2070.8,0.6692]
[1742975239799,1.2801,2070.9,2070.8,0.6692]
[1742975239994,2.24574,2070.9,2070.6,3.2078]
[1742975240200,0.96571,2070.8,2070.6,3.21504078]
[1742975240397,2.24584,2070.7,2070.6,0.00724078]
[1742975240798,0.96595,2070.3,2070.0,11.98338852]
[1742975241104,1.2801,2070.2,2070.0,0.6692]
[1742975241409,3.166,2070.6,2070.4,0.96585]
[1742975241596,3.166,2070.6,2070.3,4.17368]
[1742975241797,1.364,2070.5,2070.3,3.2078]
[1742975242299,3.166,2070.6,2070.3,3.2078]
[1742975242499,3.166,2070.6,2070.5,0.96583]
[1742975242702,1.364,2070.7,2070.5,0.96583]
[1742975242899,1.364,2070.7,2070.6,5.54408]
[1742975244006,1.364,2070.7,2070.6,46.34408]
[1742975244398,3.174,2070.9,2070.6,45.3783]
[1742975244603,1.364,2071.0,2070.8,0.96567]
[1742975244804,1.364,2071.0,2070.9,4.5998]
[1742975245100,3.18124078,2071.1,2071.0,0.9656]
[1742975245407,4.49634078,2071.1,2071.0,2.3576]
[1742975245599,4.49634078,2071.1,2071.0,1.392]
[1742975245907,4.49634078,2071.1,2070.9,3.2078]
[1742975246099,4.49634078,2071.1,2070.9,4.17344]
[1742975246402,4.49634078,2071.1,2070.9,3.2078]
[1742975246605,4.49634078,2071.1,2071.0,1.392]
[1742975246800,1.32234078,2071.1,2070.6,44.0078]
[1742975247007,0.9656,2071.0,2070.7,0.96572]
[1742975247296,1.3151,2070.9,2070.7,2.35772]
[1742975247502,1.3151,2070.9,2070.8,1.392]
[1742975248805,1.3151,2070.9,2070.8,2.35769]
[1742975249107,0.00724078,2071.1,2070.8,2.35766]
[1742975249308,1.3378,2071.0,2070.9,4.508]
[1742975249509,1.3378,2071.0,2070.9,5.47364]
[1742975249705,1.3378,2071.0,2070.9,4.508]
[1742975250000,2.3034,2071.0,2070.9,1.3002]
[1742975250406,1.3378,2071.0,2070.6,44.0078]
[1742975250607,1.2902,2070.9,2070.7,1.4051]
[1742975251006,2.25586,2070.9,2070.7,1.4051]
[1742975251207,1.2902,2070.9,2070.7,1.4051]
[1742975251509,1.2902,2070.8,2070.7,1.4051]
[1742975252507,0.96574,2070.7,2070.6,44.0078]
[1742975252703,4.4722,2070.8,2070.6,44.0078]
[1742975252909,4.4722,2070.8,2070.6,44.97356]
[1742975253104,4.4722,2070.8,2070.7,2.37084]
[1742975253309,4.4832,2071.0,2070.7,1.4051]
[1742975253605,1.2902,2070.9,2070.8,2.37079]
[1742975253805,0.00724078,2071.1,2070.8,1.4051]
[1742975254011,3.20224078,2071.1,2071.0,0.9656]
[1742975254212,3.20224078,2071.1,2071.0,2.3803]
[1742975254413,0.00724078,2071.1,2071.0,1.4147]
[1742975254711,0.97279078,2071.1,2071.0,1.4147]
[1742975256716,0.00724078,2071.1,2071.0,2.3803]
[1742975258301,0.96535,2071.6,2071.4,0.96537]
[1742975258501,1.33,2071.6,2071.5,1.367]
[1742975258800,2.29532,2071.6,2071.5,1.367]
[1742975259009,0.9654,2071.5,2071.2,4.17328]
[1742975259210,2.2954,2071.5,2071.3,2.33245]
[1742975259518,2.2954,2071.5,2071.4,1.367]
[1742975259709,0.9654,2071.5,2071.4,1.367]
[1742975261821,4.16859078,2071.6,2071.4,2.33241]
[1742975262029,4.16859078,2071.6,2071.5,1.2956]
[1742975262321,3.20324078,2071.6,2071.5,1.2956]
[1742975262521,4.16856078,2071.6,2071.5,1.2956]
[1742975264317,4.16856078,2071.6,2071.5,2.26096]
[1742975264625,4.16856078,2071.6,2071.5,1.2956]
[1742975265423,0.96541,2071.4,2071.3,1.66766]
[1742975265621,0.96541,2071.4,2071.3,3.05106]
[1742975266525,0.96541,2071.4,2071.3,2.0856]
[1742975267621,0.97259078,2071.6,2071.4,0.96539]
[1742975267819,0.97259078,2071.6,2071.5,1.3555]
[1742975268522,0.96541,2071.4,2071.3,0.7022]
[1742975268827,0.00724078,2071.6,2071.2,3.2078]
[1742975268828,0.96546,2071.3,2071.2,3.2078]
[1742975269023,1.64256,2071.3,2071.2,3.2078]
[1742975269223,0.96546,2071.3,2071.2,3.2078]
[1742975269626,4.15738,2071.5,2071.3,0.96542]
[1742975269823,0.00724078,2071.6,2071.5,0.96536]
[1742975270419,0.00724078,2071.6,2071.5,1.65626]
[1742975271023,0.00724078,2071.6,2071.5,4.86406]
[1742975273028,0.00724078,2071.6,2071.5,5.52919164]
[1742975273224,0.00724078,2071.6,2071.5,46.32919164]
[1742975273419,0.96511,2072.1,2071.9,0.96515]
[1742975273625,0.96508,2072.1,2072.0,1.3241]
[1742975274922,2.28958,2072.1,2072.0,1.3241]
[1742975275827,0.96517,2072.0,2071.8,0.96519]
[1742975276029,2.28967,2072.0,2071.9,0.96518]
[1742975276530,2.28967,2072.0,2071.7,0.6571]
[1742975276731,2.28968,2071.9,2071.8,1.4164]
[1742975276927,1.3245,2071.9,2071.8,2.38159]
[1742975277321,2.28968,2071.9,2071.8,1.4164]
[1742975278335,2.28968,2071.9,2071.8,2.38162]
[1742975278836,2.28968,2071.9,2071.8,1.4164]
[1742975279734,0.96531,2071.7,2071.5,44.6987]
[1742975280030,3.218,2071.6,2071.2,3.2078]
[1742975280235,3.218,2071.6,2071.2,4.17327]
[1742975280422,0.96546,2071.3,2071.2,44.9733]
[1742975280627,0.96546,2071.3,2071.2,44.0078]
[1742975280835,4.18746,2071.3,2071.2,44.0078]
[1742975281533,3.222,2071.3,2071.2,44.9733]
[1742975281839,0.96541,2071.4,2071.3,0.96544]
[1742975282033,4.18639,2071.5,2071.4,0.96541]
[1742975282234,4.18636,2071.5,2071.2,44.0078]
[1742975282537,4.18636,2071.5,2071.3,0.96541]
[1742975282737,4.18636,2071.5,2071.4,0.96541]
[1742975283038,0.96543,2071.4,2071.3,0.96544]
[1742975283234,0.96543,2071.4,2071.3,2.35404]
[1742975283635,0.96546,2071.3,2071.2,44.0078]
[1742975283829,0.96546,2071.3,2071.2,3.2078]
[1742975284031,0.9655,2071.2,2071.1,1.41464078]
[1742975284239,0.96564,2070.9,2070.8,3.2078]
[1742975284436,3.223,2071.2,2070.8,3.2078]
[1742975284642,0.9656,2071.0,2070.9,2.37301]
[1742975284842,0.96557,2071.1,2071.0,0.96558]
[1742975285048,4.18853,2071.2,2071.1,0.96555]
[1742975285243,0.96555,2071.1,2071.0,2.37298]
[1742975286651,0.96555,2071.1,2071.0,1.4074]
[1742975286849,12.96290078,2071.4,2071.3,0.96546]
[1742975286850,4.87177078,2071.4,2071.3,0.96546]
[1742975288153,0.96546,2071.3,2071.2,2.28858]
[1742975288751,4.87178078,2071.4,2071.3,0.96546]
[1742975288951,4.87178078,2071.4,2071.3,2.28856]
[1742975290460,0.00724078,2071.4,2071.3,2.28856]
[1742975291653,0.00724078,2071.4,2071.3,4.78856]
[1742975291961,3.8735,2072.0,2071.9,0.96518]
[1742975292146,3.225,2072.0,2071.9,0.96518]
[1742975292657,0.96511,2072.1,2072.0,0.96513]
[1742975292857,0.96511,2072.1,2071.7,1.9511]
[1742975292858,0.96514,2072.0,2071.9,0.96516]
[1742975293047,2.29024,2072.0,2071.9,2.32156]
[1742975293458,1.3251,2072.0,2071.9,2.32156]
[1742975293757,7.40512078,2072.2,2072.1,0.96508]
[1742975293960,6.44004078,2072.2,2072.1,0.96508]
[1742975294148,0.96513,2072.0,2071.9,0.97239078]
[1742975295251,2.93392,2072.1,2072.0,0.96513]
[1742975295450,0.96513,2072.0,2071.9,2.32879078]
[1742975295651,2.29023,2072.0,2071.9,2.32879078]
[1742975296058,2.29023,2072.0,2071.9,0.00724078]
[1742975298762,0.96527,2071.7,2071.6,3.2078]
[1742975298964,0.96527,2071.7,2071.6,3.18941576]
[1742975299255,0.96527,2071.7,2071.6,4.15473576]
[1742975299456,2.38207,2071.7,2071.6,4.15473576]
[1742975299651,4.6408,2071.7,2071.6,4.15473576]
[1742975299852,4.6408,2071.7,2071.6,4.82643576]
[1742975300059,1.4168,2071.7,2071.6,4.82643576]
[1742975300460,2.38207,2071.7,2071.6,4.82643576]
[1742975300658,1.4168,2071.7,2071.6,4.82643576]
[1742975301465,2.38207,2071.7,2071.6,4.82643576]
[1742975301664,1.4168,2071.7,2071.6,4.82643576]
[1742975302363,2.38207,2071.7,2071.6,4.82643576]
[1742975302666,1.4168,2071.7,2071.6,4.82643576]
[1742975303261,2.38207,2071.7,2071.6,1.63702]
[1742975303765,1.4168,2071.7,2071.4,0.00724078]
[1742975303968,3.8942,2071.9,2071.5,0.96536]
[1742975303969,5.53355,2071.6,2071.5,0.96536]
[1742975304262,5.53355,2071.6,2071.5,2.32596]
[1742975304862,5.53355,2071.6,2071.5,1.3606]
[1742975305060,0.96536,2071.5,2071.4,0.00724078]
[1742975305266,2.25086,2071.5,2071.4,1.34924078]
[1742975305566,2.25086,2071.5,2071.4,2.31465078]
[1742975306863,1.2855,2071.5,2071.4,2.31465078]
[1742975308167,2.25086,2071.5,2071.4,2.31465078]
[1742975309467,1.2855,2071.5,2071.4,2.31465078]
[1742975310065,2.25086,2071.5,2071.4,2.31465078]
[1742975313871,2.25086,2071.5,2071.4,1.34924078]
[1742975314368,2.93456,2071.5,2071.4,1.34924078]
[1742975314570,2.93456,2071.5,2071.4,0.00724078]
[1742975315372,6.14236,2071.5,2071.4,0.00724078]
[1742975316771,6.14236,2071.5,2071.4,2.28865078]
[1742975317080,6.14236,2071.5,2071.4,0.00724078]
[1742975321779,6.14236,2071.5,2071.4,0.97265078]
[1742975321978,6.14236,2071.5,2071.4,1.32934078]
[1742975323881,6.14236,2071.5,2071.4,0.00724078]
[1742975324378,0.96564,2070.9,2070.8,2.6333]
[1742975324880,0.96564,2070.9,2070.8,43.4333]
[1742975325068,2.27334,2070.9,2070.8,43.4333]
[1742975325473,2.27334,2070.9,2070.8,2.6333]
[1742975328283,2.27334,2070.9,2070.8,1.3144]
[1742975328580,2.27334,2070.9,2070.6,44.01504078]
[1742975328581,0.96574,2070.7,2070.6,44.01504078]
[1742975328884,4.15974,2070.7,2070.6,41.77302078]
[1742975329594,4.15974,2070.7,2070.6,43.08072078]
[1742975331977,4.15974,2070.7,2070.6,42.11494078]
[1742975332185,4.15974,2070.7,2070.6,43.08072078]
[1742975332381,4.15974,2070.7,2070.6,42.11494078]
[1742975332686,4.15974,2070.7,2070.6,0.00724078]
[1742975332872,4.80244,2070.7,2070.6,0.00724078]
[1742975334183,4.80244,2070.7,2070.6,1.34504078]
[1742975334368,4.80244,2070.7,2070.6,2.31082078]
[1742975334578,4.15974,2070.7,2070.6,2.99292078]
[1742975334782,0.96574,2070.7,2070.6,2.99292078]
[1742975335082,4.15874,2070.7,2070.6,2.02714078]
[1742975335986,4.15874,2070.7,2070.6,2.99292078]
[1742975336281,4.15874,2070.7,2070.6,2.02714078]
[1742975336484,4.15874,2070.7,2070.6,2.99292078]
[1742975340483,1.3798,2070.8,2070.7,0.96574]
[1742975340688,4.5638,2070.8,2070.7,2.37274]
[1742975341089,1.3798,2070.8,2070.7,2.37274]
[1742975341391,4.5638,2070.8,2070.7,2.37274]
[1742975341890,5.52949,2070.8,2070.7,2.37274]
[1742975342893,1.3798,2070.8,2070.7,2.37274]
[1742975343194,2.34549,2070.8,2070.7,2.37274]